fUST/lending_fUST_20250408
["ID","MTS","AMOUNT","RATE_DAILY","PERIOD"]
[357474881,1744079439505,-500.0,0.00021917,2]
[357474882,1744079439516,-500.0,0.00021917,2]
[357474883,1744079439525,-506.71826189,0.00021917,2]
[357474884,1744079439535,-500.0,0.00021917,2]
[357474885,1744079439545,-500.0,0.00021917,2]
[357474886,1744079439555,-520.53114595,0.00021917,2]
[357474887,1744079439565,-500.0,0.00021917,2]
[357474888,1744079439575,-504.17729718,0.00021917,2]
[357474889,1744079439585,-500.0,0.00021917,2]
[357474890,1744079439594,-508.22395177,0.00021917,2]
[357474891,1744079439605,-517.20168778,0.00021917,2]
[357474892,1744079439615,-500.0,0.00021917,2]
[357474893,1744079439628,-500.0,0.00021917,2]
[357474894,1744079439641,-500.0,0.00021917,2]
[357474895,1744079439651,-500.0,0.00021917,2]
[357474896,1744079439661,-500.0,0.00021917,2]
[357474897,1744079439671,-617.55,0.00021917,2]
[357474898,1744079439682,-500.0,0.00021917,2]
[357474899,1744079439693,-500.0,0.00021917,2]
[357474900,1744079439704,-500.0,0.00021917,2]
[357474901,1744079439714,-500.0,0.00021917,2]
[357474902,1744079439724,-500.0,0.00021917,2]
[357474903,1744079439734,-500.0,0.00021917,2]
[357474904,1744079439744,-500.0,0.00021917,2]
[357474905,1744079439755,-655.89,0.00021917,2]
[357474906,1744079439765,-500.0,0.00021917,2]
[357474907,1744079439775,-500.0,0.00021917,2]
[357474908,1744079439786,-500.0,0.00021917,2]
[357474909,1744079439797,-500.0,0.00021917,2]
[357474910,1744079439808,-500.0,0.00021917,2]
[357474911,1744079439818,-500.0,0.00021917,2]
[357474912,1744079439829,-694.6,0.00021917,2]
[357474913,1744079439839,-500.0,0.00021917,2]
[357474914,1744079439850,-500.0,0.00021917,2]
[357474915,1744079439860,-500.0,0.00021917,2]
[357474916,1744079439871,-777.63,0.00021917,2]
[357474917,1744079439882,-399.39679445,0.00021917,2]
[357474918,1744079439893,-500.0,0.00021917,2]
[357474919,1744079439903,-536.91,0.00021917,2]
[357474920,1744079439915,-500.0,0.00021917,2]
[357474922,1744079439926,-500.0,0.00021917,2]
[357474923,1744079439937,-500.0,0.00021917,2]
[357474925,1744079439947,-527.31,0.00021917,2]
[357474926,1744079439957,-500.0,0.00021917,2]
[357474927,1744079439968,-525.44859075,0.00021917,2]
[357474928,1744079439978,-500.0,0.00021917,2]
[357474929,1744079439989,-647.06,0.00021917,2]
[357474930,1744079440000,-500.0,0.00021917,2]
[357474931,1744079440010,-500.0,0.00021917,2]
[357474933,1744079440020,-1500.08,0.00021917,2]
[357474934,1744079440030,-500.0,0.00021917,2]
[357474935,1744079440041,-500.0,0.00021917,2]
[357474936,1744079440051,-500.0,0.00021917,2]
[357474937,1744079440062,-601.69,0.00021917,2]
[357474938,1744079440072,-500.0,0.00021917,2]
[357474939,1744079440083,-500.0,0.00021917,2]
[357474940,1744079440093,-500.0,0.00021917,2]
[357474941,1744079440104,-500.0,0.00021917,2]
[357474943,1744079440114,-500.0,0.00021917,2]
[357474944,1744079440125,-257.03152615,0.00021917,2]
[357474946,1744079440136,-500.0,0.00021917,2]
[357474947,1744079440146,-1208.47,0.00021917,2]
[357474948,1744079440156,-500.0,0.00021917,2]
[357474949,1744079440166,-500.0,0.00021917,2]
[357474950,1744079440176,-500.0,0.00021917,2]
[357474951,1744079440187,-1268.13,0.00021917,2]
[357474952,1744079440197,-500.0,0.00021917,2]
[357474953,1744079440208,-1140.19,0.00021917,2]
[357474954,1744079440219,-500.0,0.00021917,2]
[357474955,1744079440229,-727.74,0.00021917,2]
[357474956,1744079440239,-500.0,0.00021917,2]
[357474957,1744079440249,-431.81392735,0.00021917,2]
[357474958,1744079440260,-500.0,0.00021917,2]
[357474959,1744079440271,-412.97741077,0.00021917,2]
[357474960,1744079440281,-500.0,0.00021917,2]
[357474961,1744079440291,-500.0,0.00021917,2]
[357474962,1744079440301,-500.0,0.00021917,2]
[357474963,1744079440311,-554.86,0.00021917,2]
[357474964,1744079440321,-500.0,0.00021917,2]
[357474965,1744079440331,-500.0,0.00021917,2]
[357474966,1744079440342,-831.74,0.00021917,2]
[357474967,1744079440353,-500.0,0.00021917,2]
[357474968,1744079440363,-500.0,0.00021917,2]
[357474969,1744079440373,-500.0,0.00021917,2]
[357474970,1744079440385,-500.0,0.00021917,2]
[357474971,1744079440394,-1393.1,0.00021917,2]
[357474972,1744079440405,-951.68,0.00021917,2]
[357474973,1744079440415,-500.0,0.00021917,2]
[357474974,1744079440430,-500.0,0.00021917,2]
[357474975,1744079440441,-500.0,0.00021917,2]
[357474976,1744079440451,-500.0,0.00021917,2]
[357474977,1744079440461,-500.0,0.00021917,2]
[357474978,1744079440472,-500.0,0.00021917,2]
[357474979,1744079440482,-1353.37,0.00021917,2]
[357474980,1744079440492,-500.0,0.00021917,2]
[357474981,1744079440503,-500.0,0.00021917,2]
[357474982,1744079440513,-500.0,0.00021917,2]
[357474983,1744079440525,-500.0,0.00021917,2]
[357474984,1744079440535,-500.0,0.00021917,2]
[357474985,1744079440546,-500.0,0.00021917,2]
[357474986,1744079440556,-1182.11,0.00021917,2]
[357474987,1744079440567,-500.0,0.00021917,2]
[357474988,1744079440578,-500.0,0.00021917,2]
[357474989,1744079440589,-500.0,0.00021917,2]
[357474990,1744079440599,-500.0,0.00021917,2]
[357474991,1744079440610,-500.0,0.00021917,2]
[357474992,1744079440621,-500.0,0.00021917,2]
[357474993,1744079440635,-526.21,0.00021917,2]
[357474994,1744079440647,-500.0,0.00021917,2]
[357474995,1744079440657,-500.0,0.00021917,2]
[357474996,1744079440668,-505.72239132,0.00021917,2]
[357474997,1744079440678,-2114.72,0.00021917,2]
[357474998,1744079440689,-500.0,0.00021917,2]
[357474999,1744079440712,-500.0,0.00021917,2]
[357475000,1744079440723,-572.22,0.00021917,2]
[357475001,1744079440734,-500.0,0.00021917,2]
[357475002,1744079440745,-8763.46,0.00021917,2]
[357475003,1744079440755,-500.0,0.00021917,2]
[357475004,1744079440766,-1114.99,0.00021917,2]
[357475005,1744079440776,-500.0,0.00021917,2]
[357475006,1744079440786,-500.0,0.00021917,2]
[357475007,1744079440796,-500.0,0.00021917,2]
[357475008,1744079440807,-500.0,0.00021917,2]
[357475009,1744079440818,-500.0,0.00021917,2]
[357475010,1744079440828,-500.0,0.00021917,2]
[357475011,1744079440839,-836.02,0.00021917,2]
[357475012,1744079440850,-500.0,0.00021917,2]
[357475013,1744079440860,-1780.71,0.00021917,2]
[357475014,1744079440871,-500.0,0.00021917,2]
[357475015,1744079440881,-500.0,0.00021917,2]
[357475016,1744079440893,-500.0,0.00021917,2]
[357475017,1744079440904,-500.0,0.00021917,2]
[357475018,1744079440914,-595.24,0.00021917,2]
[357475019,1744079440924,-524.96,0.00021917,2]
[357475020,1744079440935,-500.0,0.00021917,2]
[357475021,1744079440945,-502.19253502,0.00021917,2]
[357475022,1744079440955,-500.0,0.00021917,2]
[357475023,1744079440965,-541.87601122,0.00021917,2]
[357475024,1744079440976,-500.0,0.00021917,2]
[357475025,1744079440987,-771.06,0.00021917,2]
[357475026,1744079440997,-500.0,0.00021917,2]
[357475027,1744079441008,-2262.69,0.00021917,2]
[357475028,1744079441188,-500.0,0.00021917,2]
[357475029,1744079441199,-500.0,0.00021917,2]
[357475030,1744079441209,-500.0,0.00021917,2]
[357475031,1744079441219,-2880.26,0.00021917,2]
[357475032,1744079441229,-500.0,0.00021917,2]
[357475033,1744079441238,-1798.88,0.00021917,2]
[357475034,1744079441248,-1134.35,0.00021917,2]
[357475035,1744079441257,-500.0,0.00021917,2]
[357475036,1744079441267,-589.5,0.00021917,2]
[357475037,1744079441276,-500.0,0.00021917,2]
[357475038,1744079441286,-500.0,0.00021917,2]
[357475039,1744079441295,-500.0,0.00021917,2]
[357475040,1744079441305,-500.0,0.00021917,2]
[357475041,1744079441314,-247.45595491,0.00021917,2]
[357475042,1744079441324,-500.0,0.00021917,2]
[357475043,1744079441333,-500.0,0.00021917,2]
[357475044,1744079441342,-1340.54,0.00021917,2]
[357475045,1744079441352,-500.0,0.00021917,2]
[357475046,1744079441362,-500.0,0.00021917,2]
[357475047,1744079441371,-504.32576796,0.00021917,2]
[357475048,1744079441381,-2337.51,0.00021917,2]
[357475049,1744079441392,-542.01,0.00021917,2]
[357475050,1744079441402,-2076.71,0.00021917,2]
[357475051,1744079441411,-542.12329527,0.00021917,2]
[357475052,1744079441421,-500.0,0.00021917,2]
[357475053,1744079441430,-730.76,0.00021917,2]
[357475054,1744079441440,-500.0,0.00021917,2]
[357475055,1744079441449,-1162.69,0.00021917,2]
[357475056,1744079441459,-1291.27,0.00021917,2]
[357475057,1744079441468,-501.5764232,0.00021917,2]
[357475058,1744079441478,-500.0,0.00021917,2]
[357475059,1744079441487,-546.37,0.00021917,2]
[357475060,1744079441496,-500.0,0.00021917,2]
[357475061,1744079441506,-500.0,0.00021917,2]
[357475062,1744079441516,-435.50990064,0.00021917,2]
[357475063,1744079441526,-1701.69,0.00021917,2]
[357475064,1744079441535,-1276.21,0.00021917,2]
[357475065,1744079441545,-500.0,0.00021917,2]
[357475066,1744079441554,-500.0,0.00021917,2]
[357475067,1744079441564,-561.08,0.00021917,2]
[357475068,1744079441573,-500.0,0.00021917,2]
[357475069,1744079441582,-500.0,0.00021917,2]
[357475070,1744079441592,-500.0,0.00021917,2]
[357475071,1744079441601,-500.0,0.00021917,2]
[357475072,1744079441610,-890.46,0.00021917,2]
[357475073,1744079441622,-502.47660326,0.00021917,2]
[357475074,1744079441632,-500.0,0.00021917,2]
[357475075,1744079441643,-5381.3,0.00021917,2]
[357475076,1744079441653,-1513.16,0.00021917,2]
[357475077,1744079441662,-500.0,0.00021917,2]
[357475078,1744079441672,-500.0,0.00021917,2]
[357475079,1744079441682,-500.0,0.00021917,2]
[357475080,1744079441691,-500.0,0.00021917,2]
[357475081,1744079441702,-720.44,0.00021917,2]
[357475082,1744079441713,-504.17581973,0.00021917,2]
[357475083,1744079441723,-500.0,0.00021917,2]
[357475084,1744079441733,-500.0,0.00021917,2]
[357475085,1744079441743,-500.0,0.00021917,2]
[357475086,1744079441752,-500.0,0.00021917,2]
[357475087,1744079441762,-1073.11,0.00021917,2]
[357475088,1744079441772,-500.0,0.00021917,2]
[357475089,1744079441781,-568.94,0.00021917,2]
[357475090,1744079441791,-505.81141377,0.00021917,2]
[357475091,1744079441800,-500.63267858,0.00021917,2]
[357475092,1744079441809,-523.03,0.00021917,2]
[357475093,1744079441819,-500.0,0.00021917,2]
[357475094,1744079441829,-795.94,0.00021917,2]
[357475095,1744079441838,-590.76,0.00021917,2]
[357475096,1744079441848,-521.97391915,0.00021917,2]
[357475097,1744079441857,-500.0,0.00021917,2]
[357475098,1744079441867,-1531.45,0.00021917,2]
[357475099,1744079441876,-500.0,0.00021917,2]
[357475100,1744079441886,-1878.37,0.00021917,2]
[357475101,1744079441896,-1180.34,0.00021917,2]
[357475102,1744079441906,-526.82758885,0.00021917,2]
[357475103,1744079441916,-500.0,0.00021917,2]
[357475104,1744079441925,-2000.22,0.00021917,2]
[357475105,1744079441935,-1118.42,0.00021917,2]
[357475106,1744079441946,-393.73989714,0.00021917,2]
[357475107,1744079441955,-500.0,0.00021917,2]
[357475108,1744079441966,-500.0,0.00021917,2]
[357475109,1744079441976,-1868.62,0.00021917,2]
[357475110,1744079441986,-4066.17,0.00021917,2]
[357475111,1744079441996,-449.57070385,0.00021917,2]
[357475112,1744079442006,-4066.17,0.00021917,2]
[357475113,1744079442017,-4066.17,0.00021917,2]
[357475114,1744079442026,-4066.17,0.00021917,2]
[357475115,1744079442036,-4066.17,0.00021917,2]
[357475116,1744079442046,-4066.17,0.00021917,2]
[357475117,1744079442055,-4066.17,0.00021917,2]
[357475118,1744079442065,-500.0,0.00021917,2]
[357475119,1744079442074,-4066.17,0.00021917,2]
[357475120,1744079442084,-4066.17,0.00021917,2]
[357475121,1744079442093,-4066.17,0.00021917,2]
[357475122,1744079442103,-4066.17,0.00021917,2]
[357475123,1744079442113,-500.0,0.00021917,2]
[357475124,1744079442122,-4066.17,0.00021917,2]
[357475125,1744079442132,-4066.17,0.00021917,2]
[357475126,1744079442143,-4066.17,0.00021917,2]
[357475128,1744079442152,-4066.17,0.00021917,2]
[357475129,1744079442162,-4066.17,0.00021917,2]
[357475130,1744079442171,-500.0,0.00021917,2]
[357475131,1744079442181,-4066.17,0.00021917,2]
[357475132,1744079442190,-4066.17,0.00021917,2]
[357475133,1744079442200,-4066.17,0.00021917,2]
[357475134,1744079442210,-4066.17,0.00021917,2]
[357475135,1744079442219,-4066.17,0.00021917,2]
[357475136,1744079442229,-500.0,0.00021917,2]
[357475137,1744079442238,-4066.17,0.00021917,2]
[357475138,1744079442248,-4066.17,0.00021917,2]
[357475139,1744079442257,-4066.21518642,0.00021917,2]
[357475140,1744079442266,-1602.29,0.00021917,2]
[357475141,1744079442276,-500.0,0.00021917,2]
[357475142,1744079442286,-500.0,0.00021917,2]
[357475143,1744079442295,-500.0,0.00021917,2]
[357475144,1744079442304,-211.11274362,0.00021917,2]
[357475145,1744079442314,-1915.21,0.00021917,2]
[357475146,1744079442323,-500.0,0.00021917,2]
[357475147,1744079442332,-602.81,0.00021917,2]
[357475148,1744079442342,-500.0,0.00021917,2]
[357475149,1744079442352,-2426.96,0.00021917,2]
[357475150,1744079442361,-500.0,0.00021917,2]
[357475151,1744079442371,-500.0,0.00021917,2]
[357475152,1744079442380,-500.0,0.00021917,2]
[357475153,1744079442390,-500.0,0.00021917,2]
[357475154,1744079442399,-500.0,0.00021917,2]
[357475155,1744079442409,-1165.83,0.00021917,2]
[357475156,1744079442419,-2935.5,0.00021917,2]
[357475157,1744079442428,-200.0,0.00021917,2]
[357475158,1744079442437,-955.52,0.00021917,2]
[357475159,1744079442446,-500.0,0.00021917,2]
[357475160,1744079442456,-500.0,0.00021917,2]
[357475161,1744079442465,-500.0,0.00021917,2]
[357475162,1744079442474,-500.0,0.00021917,2]
[357475163,1744079442484,-1109.48,0.00021917,2]
[357475164,1744079442493,-500.0,0.00021917,2]
[357475165,1744079442502,-500.0,0.00021917,2]
[357475166,1744079442512,-500.0,0.00021917,2]
[357475167,1744079442521,-500.0,0.00021917,2]
[357475168,1744079442530,-1240.57,0.00021917,2]
[357475169,1744079442539,-500.0,0.00021917,2]
[357475170,1744079442548,-500.0,0.00021917,2]
[357475171,1744079442557,-500.0,0.00021917,2]
[357475172,1744079442567,-233.85953548,0.00021917,2]
[357475173,1744079442576,-1640.16,0.00021917,2]
[357475174,1744079442585,-1590.68,0.00021917,2]
[357475175,1744079442595,-1590.68,0.00021917,2]
[357475176,1744079442604,-503.7,0.00021917,2]
[357475177,1744079442614,-1590.68,0.00021917,2]
[357475178,1744079442624,-1590.68,0.00021917,2]
[357475179,1744079442637,-1590.68,0.00021917,2]
[357475180,1744079442648,-1590.68,0.00021917,2]
[357475181,1744079442657,-500.0,0.00021917,2]
[357475182,1744079442666,-1590.68,0.00021917,2]
[357475183,1744079442677,-1590.68,0.00021917,2]
[357475184,1744079442687,-500.0,0.00021917,2]
[357475185,1744079442697,-1590.68,0.00021917,2]
[357475186,1744079442708,-1590.68,0.00021917,2]
[357475187,1744079442718,-1590.68,0.00021917,2]
[357475188,1744079442728,-1590.68,0.00021917,2]
[357475189,1744079442738,-1590.68,0.00021917,2]
[357475190,1744079442749,-1590.68,0.00021917,2]
[357475191,1744079442758,-1590.68,0.00021917,2]
[357475192,1744079442768,-1590.68,0.00021917,2]
[357475193,1744079442778,-1130.38,0.00021917,2]
[357475194,1744079442788,-1590.68,0.00021917,2]
[357475195,1744079442798,-1590.68,0.00021917,2]
[357475196,1744079442807,-1590.68,0.00021917,2]
[357475197,1744079442817,-1590.68,0.00021917,2]
[357475198,1744079442827,-1590.68,0.00021917,2]
[357475199,1744079442836,-1590.68,0.00021917,2]
[357475200,1744079442846,-500.0,0.00021917,2]
[357475201,1744079442855,-1590.68,0.00021917,2]
[357475203,1744079442864,-504.32029485,0.00021917,2]
[357475204,1744079442874,-1590.74436247,0.00021917,2]
[357475206,1744079442883,-500.0,0.00021917,2]
[357475207,1744079442894,-853.03,0.00021917,2]
[357475208,1744079442903,-500.0,0.00021917,2]
[357475209,1744079442914,-500.0,0.00021917,2]
[357475210,1744079442923,-500.0,0.00021917,2]
[357475211,1744079442933,-187.78006525,0.00021934,2]
[357475212,1744079442943,-1158.47320939,0.00021935,2]
[357475213,1744079442953,-500.0,0.00021973,2]
[357475214,1744079442962,-500.58205629,0.00021973,2]
[357475215,1744079442972,-501.28287713,0.00021973,2]
[357475216,1744079442981,-502.07304544,0.00021973,2]
[357475217,1744079442991,-552.26994576,0.00021973,2]
[357475219,1744079443000,-435.50982937,0.00021973,2]
[357475220,1744079443010,-500.55098933,0.00021973,2]
[357475221,1744079443019,-501.02983718,0.00021973,2]
[357475222,1744079443028,-615.28107241,0.00021973,2]
[357475224,1744079443038,-500.0,0.00021973,2]
[357475225,1744079443048,-500.96418781,0.00021973,2]
[357475226,1744079443057,-500.0,0.00021973,2]
[357475227,1744079443067,-500.0,0.00021973,2]
[357475228,1744079443076,-500.0,0.00021973,2]
[357475229,1744079443085,-615.16376688,0.00021973,2]
[357475230,1744079443096,-500.0,0.00021973,2]
[357475231,1744079443105,-501.32097158,0.00021973,2]
[357475232,1744079443114,-608.3465431,0.00021973,2]
[357475233,1744079443124,-300.36949938,0.00021973,2]
[357475234,1744079443135,-194.72792766,0.00021989,2]
[357475235,1744079443147,-820.0,0.00022,2]
[357475236,1744079443157,-201.93286099,0.00022044,2]
[357475237,1744079443166,-232.09328788,0.00022078,2]
[357475238,1744079443175,-420.0,0.00022089,2]
[357475239,1744079443184,-209.40437684,0.00022099,2]
[357475240,1744079443193,-217.15233878,0.00022154,2]
[357475241,1744079443203,-500.74984166,0.00022173,2]
[357475242,1744079443212,-500.66664329,0.00022173,2]
[357475243,1744079443222,-183.69513266,0.00022173,2]
[357475244,1744079443231,-500.44014391,0.00022173,2]
[357475245,1744079443241,-501.25735635,0.00022173,2]
[357475246,1744079443250,-501.49778525,0.00022173,2]
[357475247,1744079443259,-500.0,0.00022173,2]
[357475248,1744079443268,-430.08989638,0.00022173,2]
[357475249,1744079443278,-503.78605617,0.00022173,2]
[357475250,1744079443288,-150.16802362,0.00022173,2]
[357475251,1744079443297,-500.0,0.00022173,2]
[357475252,1744079443306,-500.0,0.00022173,2]
[357475253,1744079443316,-503.56205169,0.00022173,2]
[357475254,1744079443325,-500.0,0.00022173,2]
[357475255,1744079443334,-500.0,0.00022173,2]
[357475256,1744079443343,-535.61244981,0.00022173,2]
[357475257,1744079443353,-500.0,0.00022173,2]
[357475258,1744079443362,-500.0,0.00022191,2]
[357475259,1744079443371,-500.0,0.00022191,2]
[357475260,1744079443381,-500.0,0.00022191,2]
[357475261,1744079443390,-500.0,0.00022191,2]
[357475262,1744079443399,-500.0,0.00022191,2]
[357475263,1744079443409,-500.0,0.00022191,2]
[357475264,1744079443419,-500.0,0.00022191,2]
[357475265,1744079443428,-500.0,0.00022191,2]
[357475266,1744079443437,-500.0,0.00022191,2]
[357475267,1744079443447,-500.0,0.00022191,2]
[357475268,1744079443457,-500.0,0.00022191,2]
[357475269,1744079443467,-500.0,0.00022191,2]
[357475270,1744079443476,-500.0,0.00022191,2]
[357475271,1744079443487,-512.11988996,0.00022191,2]
[357475272,1744079443496,-500.0,0.00022191,2]
[357475273,1744079443505,-500.11,0.00022191,2]
[357475274,1744079443515,-500.0,0.00022191,2]
[357475275,1744079443525,-500.0,0.00022191,2]
[357475276,1744079443534,-500.0,0.00022191,2]
[357475277,1744079443543,-500.0,0.00022191,2]
[357475278,1744079443554,-500.0,0.00022191,2]
[357475279,1744079443564,-500.0,0.00022191,2]
[357475280,1744079443573,-500.0,0.00022191,2]
[357475281,1744079443583,-500.0,0.00022191,2]
[357475282,1744079443592,-300.85,0.00022191,2]
[357475283,1744079443602,-500.0,0.00022191,2]
[357475284,1744079443613,-500.0,0.00022191,2]
[357475287,1744079443623,-500.0,0.00022191,2]
[357475288,1744079443637,-500.0,0.00022191,2]
[357475289,1744079443647,-500.0,0.00022191,2]
[357475290,1744079443657,-200.0,0.00022191,2]
[357475291,1744079443666,-500.0,0.00022191,2]
[357475292,1744079443677,-500.0,0.00022191,2]
[357475293,1744079443686,-500.0,0.00022191,2]
[357475294,1744079443696,-500.0,0.00022191,2]
[357475295,1744079443706,-500.0,0.00022191,2]
[357475296,1744079443715,-500.0,0.00022191,2]
[357475297,1744079443725,-500.0,0.00022191,2]
[357475298,1744079443734,-500.0,0.00022191,2]
[357475300,1744079443744,-520.28919712,0.00022191,2]
[357475302,1744079443754,-500.0,0.00022191,2]
[357475303,1744079443763,-500.0,0.00022191,2]
[357475304,1744079443773,-500.0,0.00022191,2]
[357475305,1744079443782,-500.0,0.00022191,2]
[357475306,1744079443792,-500.0,0.00022191,2]
[357475307,1744079443801,-500.0,0.00022191,2]
[357475308,1744079443811,-373.95918618,0.00022191,2]
[357475309,1744079443820,-500.0,0.00022191,2]
[357475310,1744079443829,-500.0,0.00022191,2]
[357475311,1744079443839,-500.0,0.00022191,2]
[357475312,1744079443848,-500.0,0.00022191,2]
[357475313,1744079443857,-500.0,0.00022191,2]
[357475314,1744079443867,-500.0,0.00022191,2]
[357475315,1744079443876,-617.55,0.00022191,2]
[357475316,1744079443885,-500.0,0.00022191,2]
[357475317,1744079443897,-583.065375,0.00022191,2]
[357475318,1744079443906,-500.0,0.00022191,2]
[357475319,1744079443915,-500.0,0.00022191,2]
[357475320,1744079443925,-500.0,0.00022191,2]
[357475321,1744079443934,-500.0,0.00022191,2]
[357475322,1744079443943,-500.0,0.00022191,2]
[357475323,1744079443952,-655.89,0.00022191,2]
[357475324,1744079443961,-500.0,0.00022191,2]
[357475325,1744079443971,-500.0,0.00022191,2]
[357475326,1744079443980,-500.0,0.00022191,2]
[357475327,1744079443990,-500.0,0.00022191,2]
[357475328,1744079443999,-500.0,0.00022191,2]
[357475329,1744079444009,-500.0,0.00022191,2]
[357475330,1744079444018,-694.6,0.00022191,2]
[357475331,1744079444028,-500.0,0.00022191,2]
[357475332,1744079444037,-500.0,0.00022191,2]
[357475333,1744079444047,-500.0,0.00022191,2]
[357475334,1744079444057,-777.63,0.00022191,2]
[357475335,1744079444067,-500.0,0.00022191,2]
[357475336,1744079444076,-536.91,0.00022191,2]
[357475337,1744079444085,-548.88078245,0.00022191,2]
[357475338,1744079444095,-500.0,0.00022191,2]
[357475339,1744079444105,-500.0,0.00022191,2]
[357475340,1744079444114,-527.31,0.00022191,2]
[357475341,1744079444124,-500.0,0.00022191,2]
[357475342,1744079444133,-500.0,0.00022191,2]
[357475343,1744079444144,-647.06,0.00022191,2]
[357475344,1744079444155,-504.03480057,0.00022191,2]
[357475345,1744079444169,-500.0,0.00022191,2]
[357475346,1744079444179,-1500.08,0.00022191,2]
[357475347,1744079444188,-500.0,0.00022191,2]
[357475348,1744079444198,-500.0,0.00022191,2]
[357475349,1744079444207,-500.0,0.00022191,2]
[357475350,1744079444217,-601.69,0.00022191,2]
[357475351,1744079444226,-500.0,0.00022191,2]
[357475352,1744079444236,-500.0,0.00022191,2]
[357475353,1744079444245,-500.0,0.00022191,2]
[357475354,1744079444255,-500.0,0.00022191,2]
[357475355,1744079444266,-500.0,0.00022191,2]
[357475356,1744079444275,-523.58728853,0.00022191,2]
[357475357,1744079444285,-1208.47,0.00022191,2]
[357475358,1744079444294,-500.0,0.00022191,2]
[357475359,1744079444304,-500.0,0.00022191,2]
[357475360,1744079444314,-500.0,0.00022191,2]
[357475361,1744079444323,-1268.13,0.00022191,2]
[357475362,1744079444332,-500.0,0.00022191,2]
[357475363,1744079444342,-1140.19,0.00022191,2]
[357475364,1744079444351,-500.0,0.00022191,2]
[357475365,1744079444361,-727.74,0.00022191,2]
[357475366,1744079444371,-500.0,0.00022191,2]
[357475367,1744079444380,-500.0,0.00022191,2]
[357475368,1744079444389,-500.0,0.00022191,2]
[357475369,1744079444399,-500.0,0.00022191,2]
[357475370,1744079444409,-500.0,0.00022191,2]
[357475371,1744079444418,-554.86,0.00022191,2]
[357475372,1744079444427,-506.33839603,0.00022191,2]
[357475373,1744079444438,-500.0,0.00022191,2]
[357475374,1744079444447,-831.74,0.00022191,2]
[357475375,1744079444456,-500.0,0.00022191,2]
[357475376,1744079444466,-500.0,0.00022191,2]
[357475377,1744079444476,-505.39327323,0.00022191,2]
[357475378,1744079444489,-500.0,0.00022191,2]
[357475379,1744079444501,-1393.1,0.00022191,2]
[357475380,1744079444511,-951.68,0.00022191,2]
[357475381,1744079444521,-500.0,0.00022191,2]
[357475382,1744079444531,-500.0,0.00022191,2]
[357475383,1744079444541,-274.23868181,0.00022191,2]
[357475384,1744079444550,-500.0,0.00022191,2]
[357475385,1744079444560,-500.66225014,0.00022191,2]
[357475386,1744079444569,-500.0,0.00022191,2]
[357475387,1744079444579,-1353.37,0.00022191,2]
[357475388,1744079444589,-500.0,0.00022191,2]
[357475389,1744079444599,-500.0,0.00022191,2]
[357475390,1744079444608,-509.71578883,0.00022191,2]
[357475391,1744079444618,-500.0,0.00022191,2]
[357475392,1744079444629,-213.74858961,0.00022191,2]
[357475393,1744079444639,-500.0,0.00022191,2]
[357475394,1744079444650,-1182.11,0.00022191,2]